fUSD/lending_fUSD_20250708
["ID","MTS","AMOUNT","RATE_DAILY","PERIOD"]
[370298859,1751941865882,-460.0,0.00030684,7]
[370298860,1751941865891,-460.0,0.00030684,7]
[370298861,1751941865901,-460.0,0.00030684,7]
[370298862,1751941865910,-460.0,0.00030684,7]
[370298863,1751941865919,-505.71435123,0.00030684,7]
[370298864,1751941865929,-460.0,0.00030684,7]
[370298865,1751941865938,-773.049683,0.00030684,7]
[370298866,1751941865947,-460.0,0.00030684,7]
[370298867,1751941865957,-460.0,0.00030684,7]
[370298868,1751941865966,-1656.789343,0.00030684,7]
[370298869,1751941865975,-460.0,0.00030684,7]
[370298870,1751941865984,-773.049683,0.00030684,7]
[370298871,1751941865993,-686.42,0.00030684,7]
[370298872,1751941866003,-636.64,0.00030684,7]
[370298873,1751941866012,-535.43711859,0.00030684,7]
[370298874,1751941866021,-1656.789343,0.00030684,7]
[370298875,1751941866030,-460.0,0.00030684,7]
[370298876,1751941866040,-1580.2,0.00030684,7]
[370298877,1751941866050,-460.0,0.00030684,7]
[370298878,1751941866059,-490.0,0.00030684,7]
[370298879,1751941866068,-460.0,0.00030684,7]
[370298880,1751941866077,-650.64,0.00030684,7]
[370298881,1751941866087,-460.0,0.00030684,7]
[370298882,1751941866096,-664.74,0.00030684,7]
[370298883,1751941866109,-1231.87,0.00030684,7]
[370298884,1751941866119,-460.0,0.00030684,7]
[370298885,1751941866128,-460.0,0.00030684,7]
[370298886,1751941866137,-661.7,0.00030684,7]
[370298887,1751941866146,-460.0,0.00030684,7]
[370298888,1751941866156,-1589.43,0.00030684,7]
[370298889,1751941866165,-474.55948454,0.00030684,7]
[370298890,1751941866174,-512.04,0.00030684,7]
[370298891,1751941866183,-460.0,0.00030684,7]
[370298892,1751941866193,-300.0,0.00030684,2]
[370298893,1751941866203,-460.0,0.00030684,7]
[370298894,1751941866212,-495.95,0.00030684,7]
[370298895,1751941866222,-460.0,0.00030684,7]
[370298896,1751941866232,-460.0,0.00030684,7]
[370298897,1751941866241,-460.0,0.00030684,7]
[370298898,1751941866251,-760.43,0.00030684,7]
[370298899,1751941866260,-344.415785,0.00030684,7]
[370298900,1751941866270,-489.62,0.00030684,7]
[370298901,1751941866279,-460.0,0.00030684,7]
[370298902,1751941866288,-545.56,0.00030684,7]
[370298903,1751941866298,-501.82289189,0.00030684,7]
[370298904,1751941866307,-344.415785,0.00030684,7]
[370298905,1751941866317,-151.0,0.00030684,7]
[370298906,1751941866326,-460.0,0.00030684,7]
[370298907,1751941866336,-460.0,0.00030684,7]
[370298908,1751941866347,-512.95,0.00030684,7]
[370298909,1751941866357,-498.50433858,0.00030684,7]
[370298910,1751941866367,-1798.1,0.00030684,7]
[370298911,1751941866376,-460.0,0.00030684,7]
[370298912,1751941866387,-460.0,0.00030684,7]
[370298913,1751941866398,-460.0,0.00030684,7]
[370298914,1751941866408,-460.0,0.00030684,7]
[370298915,1751941866418,-460.0,0.00030684,7]
[370298916,1751941866428,-460.0,0.00030684,7]
[370298917,1751941866437,-500.19,0.00030684,7]
[370298918,1751941866447,-632.57,0.00030684,7]
[370298919,1751941866457,-460.0,0.00030684,7]
[370298920,1751941866467,-460.0,0.00030684,7]
[370298921,1751941866482,-460.0,0.00030684,7]
[370298922,1751941866492,-460.0,0.00030684,7]
[370298923,1751941866503,-460.0,0.00030684,7]
[370298924,1751941866513,-151.0,0.00030684,7]
[370298925,1751941866524,-460.0,0.00030684,7]
[370298926,1751941866534,-460.0,0.00030684,7]
[370298927,1751941866543,-460.0,0.00030684,7]
[370298928,1751941866556,-151.0,0.00030684,7]
[370298929,1751941866567,-1000.0,0.00030684,7]
[370298930,1751941866576,-879.29,0.00030684,7]
[370298931,1751941866589,-704.92,0.00030684,7]
[370298932,1751941866599,-1058.42,0.00030684,7]
[370298933,1751941866608,-496.6,0.00030684,7]
[370298934,1751941866617,-987.66,0.00030684,7]
[370298935,1751941866627,-151.0,0.00030684,7]
[370298936,1751941866636,-187.01364,0.00030684,7]
[370298937,1751941866646,-460.0,0.00030684,7]
[370298938,1751941866655,-460.0,0.00030684,7]
[370298939,1751941866664,-187.01364,0.00030684,7]
[370298940,1751941866674,-523.4195812,0.00030684,7]
[370298941,1751941866685,-460.0,0.00030684,7]
[370298942,1751941866695,-639.08,0.00030684,7]
[370298943,1751941866705,-460.0,0.00030684,7]
[370298944,1751941866714,-460.0,0.00030684,7]
[370298945,1751941866724,-914.42,0.00030684,7]
[370298946,1751941866735,-2293.03,0.00030684,7]
[370298947,1751941866744,-771.77,0.00030684,7]
[370298948,1751941866754,-460.0,0.00030684,7]
[370298949,1751941866763,-738.52,0.00030684,7]
[370298950,1751941866772,-460.0,0.00030684,7]
[370298951,1751941866782,-155.535697,0.00030684,7]
[370298952,1751941866791,-939.66,0.00030684,7]
[370298953,1751941866800,-483.92,0.00030684,7]
[370298954,1751941866809,-460.0,0.00030684,7]
[370298955,1751941866819,-151.0,0.00030684,7]
[370298956,1751941866828,-713.62,0.00030684,7]
[370298957,1751941866838,-688.34,0.00030684,7]
[370298958,1751941866848,-460.0,0.00030684,7]
[370298959,1751941866858,-650.21,0.00030684,7]
[370298960,1751941866868,-1557.71,0.00030684,7]
[370298961,1751941866877,-1251.88,0.00030684,7]
[370298962,1751941866889,-885.1,0.00030684,7]
[370298963,1751941866898,-460.0,0.00030684,7]
[370298964,1751941866908,-490.0,0.00030684,7]
[370298965,1751941866918,-518.97990998,0.00030684,7]
[370298966,1751941866927,-576.5,0.00030684,7]
[370298967,1751941866937,-582.61588851,0.00030684,7]
[370298968,1751941866947,-460.0,0.00030684,7]
[370298969,1751941866957,-151.0,0.00030684,7]
[370298970,1751941866967,-460.0,0.00030684,7]
[370298971,1751941866977,-460.0,0.00030684,7]
[370298972,1751941866987,-943.29,0.00030684,7]
[370298973,1751941866997,-3802.92,0.00030684,7]
[370298974,1751941867006,-460.0,0.00030684,7]
[370298975,1751941867016,-460.0,0.00030684,7]
[370298976,1751941867028,-460.0,0.00030684,7]
[370298977,1751941867037,-460.0,0.00030684,7]
[370298978,1751941867046,-460.0,0.00030684,7]
[370298979,1751941867057,-752.14,0.00030684,7]
[370298980,1751941867067,-460.0,0.00030684,7]
[370298981,1751941867076,-670.65,0.00030684,7]
[370298982,1751941867085,-899.61,0.00030684,7]
[370298983,1751941867095,-670.53,0.00030684,7]
[370298984,1751941867104,-1576.93,0.00030684,7]
[370298985,1751941867114,-460.0,0.00030684,7]
[370298986,1751941867123,-1202.89,0.00030684,7]
[370298987,1751941867132,-460.0,0.00030684,7]
[370298988,1751941867141,-170.98,0.00030684,7]
[370298989,1751941867151,-7640.54,0.00030684,7]
[370298990,1751941867160,-300.0,0.00030685,7]
[370298991,1751941867169,-460.0,0.00030691,7]
[370298992,1751941867179,-460.0,0.00030691,7]
[370298993,1751941867307,-584.75,0.00030691,7]
[370298994,1751941867317,-500.63,0.00030691,7]
[370298995,1751941867328,-4908.69387604,0.00030701,2]
[370298996,1751941867338,-4376.431572,0.00030729,16]
[370298997,1751941867347,-475.0,0.00030753,2]
[370298998,1751941867357,-1000.0,0.000308,2]
[370298999,1751941867366,-286.25,0.00030808,2]
[370299000,1751941867378,-511.0,0.00030817,8]
[370299001,1751941867387,-4974.46733,0.0003083,2]
[370299002,1751941867396,-820.97,0.00030834,7]
[370299003,1751941867406,-460.0,0.00030835,7]
[370299004,1751941867416,-460.0,0.00030835,7]
[370299005,1751941867425,-460.0,0.00030835,7]
[370299006,1751941867435,-471.51,0.00030835,7]
[370299007,1751941867445,-825.78,0.00030835,7]
[370299008,1751941867455,-14649.94,0.00030835,7]
[370299009,1751941867464,-1433.74,0.00030835,7]
[370299010,1751941867477,-460.0,0.00030845,7]
[370299011,1751941867488,-460.0,0.00030845,7]
[370299012,1751941867498,-795.67,0.00030845,7]
[370299013,1751941867507,-460.0,0.00030845,7]
[370299014,1751941867518,-460.0,0.00030845,7]
[370299015,1751941867528,-460.0,0.00030845,7]
[370299016,1751941867538,-460.0,0.00030845,7]
[370299017,1751941867550,-156.99092042,0.00030845,7]
[370299018,1751941867561,-460.0,0.00030845,7]
[370299019,1751941867571,-268.3920103,0.00030845,7]
[370299020,1751941867581,-477.76645372,0.00030845,7]
[370299021,1751941867590,-460.0,0.00030845,7]
[370299022,1751941867599,-460.0,0.00030845,7]
[370299023,1751941867610,-460.0,0.00030845,7]
[370299024,1751941867622,-460.0,0.00030845,7]
[370299025,1751941867631,-460.0,0.00030845,7]
[370299026,1751941867643,-460.0,0.00030845,7]
[370299027,1751941867652,-460.0,0.00030845,7]
[370299028,1751941867663,-460.0,0.00030845,7]
[370299029,1751941867673,-460.0,0.00030845,7]
[370299030,1751941867682,-489.27421244,0.00030845,7]
[370299031,1751941867691,-460.0,0.00030845,7]
[370299032,1751941867700,-472.59162937,0.00030845,7]
[370299033,1751941867710,-190.025179,0.00030845,7]
[370299034,1751941867720,-460.0,0.00030845,7]
[370299035,1751941867730,-460.0,0.00030845,7]
[370299036,1751941867739,-550.0,0.00030845,7]
[370299037,1751941867748,-460.0,0.00030845,7]
[370299038,1751941867757,-460.0,0.00030845,7]
[370299039,1751941867767,-460.0,0.00030845,7]
[370299040,1751941867776,-460.0,0.00030845,7]
[370299041,1751941867785,-151.0,0.00030845,7]
[370299042,1751941867795,-472.4,0.00030845,7]
[370299043,1751941867805,-506.60428403,0.00030845,7]
[370299044,1751941867814,-498.60432155,0.00030845,7]
[370299045,1751941867825,-498.02703025,0.00030845,7]
[370299046,1751941867835,-460.0,0.00030845,7]
[370299047,1751941867844,-592.44565875,0.00030845,7]
[370299048,1751941867853,-460.0,0.00030845,7]
[370299049,1751941867863,-495.51751271,0.00030845,7]
[370299050,1751941867873,-498.94188022,0.00030845,7]
[370299051,1751941867882,-152.29,0.00030845,7]
[370299052,1751941867893,-460.0,0.00030845,7]
[370299053,1751941867902,-233.88966347,0.00030845,7]
[370299054,1751941867911,-480.52508263,0.00030845,7]
[370299055,1751941867921,-167.73,0.00030845,7]
[370299056,1751941867930,-460.0,0.00030845,7]
[370299057,1751941867940,-497.25887931,0.00030845,7]
[370299058,1751941867949,-340.92,0.00030845,7]
[370299059,1751941867958,-460.0,0.00030845,7]
[370299060,1751941867967,-165.0950749,0.00030845,7]
[370299061,1751941867976,-460.0,0.00030845,7]
[370299062,1751941867986,-460.0,0.00030845,7]
[370299063,1751941867997,-460.0,0.00030845,7]
[370299064,1751941868006,-460.0,0.00030845,7]
[370299065,1751941868015,-460.0,0.00030845,7]
[370299066,1751941868024,-460.0,0.00030845,7]
[370299067,1751941868034,-460.0,0.00030845,7]
[370299068,1751941868044,-460.0,0.00030845,7]
[370299069,1751941868054,-460.0,0.00030845,7]
[370299070,1751941868063,-460.0,0.00030845,7]
[370299071,1751941868073,-460.0,0.00030845,7]
[370299072,1751941868082,-460.0,0.00030845,7]
[370299073,1751941868091,-322.54288325,0.00030845,7]
[370299074,1751941868101,-460.0,0.00030845,7]
[370299075,1751941868110,-460.0,0.00030845,7]
[370299076,1751941868121,-460.0,0.00030845,7]
[370299077,1751941868130,-460.0,0.00030845,7]
[370299078,1751941868139,-460.0,0.00030845,7]
[370299079,1751941868154,-460.0,0.00030845,7]
[370299080,1751941868163,-460.0,0.00030845,7]
[370299081,1751941868172,-460.0,0.00030845,7]
[370299082,1751941868181,-151.0,0.00030845,7]
[370299083,1751941868190,-1574.36,0.00030845,7]
[370299084,1751941868200,-460.0,0.00030845,7]
[370299085,1751941868210,-1613.6,0.00030845,7]
[370299086,1751941868219,-719.33,0.00030845,7]
[370299087,1751941868229,-673.12,0.00030845,7]
[370299088,1751941868239,-490.0,0.00030845,7]
[370299089,1751941868249,-460.0,0.00030845,7]
[370299090,1751941868258,-708.05,0.00030845,7]
[370299091,1751941868267,-948.82,0.00030845,7]
[370299092,1751941868277,-460.0,0.00030845,7]
[370299093,1751941868286,-496.19,0.00030845,7]
[370299094,1751941868296,-460.0,0.00030845,7]
[370299095,1751941868306,-736.72,0.00030845,7]
[370299096,1751941868315,-853.57,0.00030845,7]
[370299097,1751941868326,-460.0,0.00030845,7]
[370299098,1751941868336,-1296.79,0.00030845,7]
[370299099,1751941868345,-2941.08,0.00030845,7]
[370299100,1751941868354,-460.0,0.00030845,7]
[370299101,1751941868364,-460.0,0.00030845,7]
[370299102,1751941868374,-460.0,0.00030845,7]
[370299103,1751941868385,-460.0,0.00030845,7]
[370299104,1751941868395,-460.0,0.00030845,7]
[370299105,1751941868406,-460.0,0.00030845,7]
[370299106,1751941868415,-460.0,0.00030845,7]
[370299107,1751941868425,-466.15130916,0.00030845,7]
[370299108,1751941868435,-460.0,0.00030845,7]
[370299109,1751941868444,-460.0,0.00030845,7]
[370299110,1751941868452,-1194.33,0.00030845,7]
[370299111,1751941868462,-460.0,0.00030845,7]
[370299112,1751941868472,-1895.61,0.00030845,7]
[370299113,1751941868483,-460.0,0.00030845,7]
[370299114,1751941868494,-2040.43,0.00030845,7]
[370299115,1751941868503,-732.9,0.00030845,7]
[370299116,1751941868513,-460.0,0.00030845,7]
[370299117,1751941868524,-467.46140223,0.00030845,7]
[370299118,1751941868533,-1680.68,0.00030845,7]
[370299119,1751941868542,-344.415785,0.00030845,7]
[370299120,1751941868554,-1997.32,0.00030845,7]
[370299121,1751941868563,-344.415785,0.00030845,7]
[370299122,1751941868573,-460.0,0.00030845,7]
[370299123,1751941868582,-460.0,0.00030845,7]
[370299124,1751941868591,-365.51607365,0.00030845,7]
[370299125,1751941868600,-460.0,0.00030845,7]
[370299126,1751941868610,-460.0,0.00030845,7]
[370299127,1751941868619,-319.27,0.00030845,7]
[370299128,1751941868628,-460.0,0.00030845,7]
[370299129,1751941868638,-460.0,0.00030845,7]
[370299130,1751941868647,-1958.96,0.00030845,7]
[370299131,1751941868656,-460.0,0.00030845,7]
[370299132,1751941868665,-460.0,0.00030845,7]
[370299133,1751941868674,-460.0,0.00030845,7]
[370299134,1751941868684,-460.0,0.00030845,7]
[370299135,1751941868693,-187.01364,0.00030845,7]
[370299136,1751941868702,-460.0,0.00030845,7]
[370299137,1751941868711,-460.0,0.00030845,7]
[370299138,1751941868721,-187.01364,0.00030845,7]
[370299139,1751941868730,-746.74,0.00030845,7]
[370299140,1751941868739,-460.0,0.00030845,7]
[370299141,1751941868748,-460.0,0.00030845,7]
[370299142,1751941868758,-460.0,0.00030845,7]
[370299143,1751941868767,-460.0,0.00030845,7]
[370299144,1751941868776,-460.0,0.00030845,7]
[370299145,1751941868785,-460.0,0.00030845,7]
[370299146,1751941868794,-922.2,0.00030845,7]
[370299147,1751941868804,-806.13,0.00030845,7]
[370299148,1751941868813,-460.0,0.00030845,7]
[370299149,1751941868822,-460.0,0.00030845,7]
[370299150,1751941868831,-460.0,0.00030845,7]
[370299151,1751941868840,-560.49944559,0.00030845,7]
[370299152,1751941868850,-460.0,0.00030845,7]
[370299153,1751941868859,-557.12806198,0.00030845,7]
[370299154,1751941868869,-151.0,0.00030845,7]
[370299155,1751941868878,-460.0,0.00030845,7]
[370299156,1751941868887,-460.0,0.00030845,7]
[370299157,1751941868897,-460.0,0.00030845,7]
[370299158,1751941868906,-460.0,0.00030845,7]
[370299159,1751941868915,-1077.15,0.00030845,7]
[370299160,1751941868925,-1580.18,0.00030845,7]
[370299161,1751941868934,-151.375249,0.00030846,7]
[370299162,1751941868943,-153.244822,0.00030846,7]
[370299163,1751941868952,-151.0,0.00030846,7]
[370299164,1751941868961,-151.0,0.00030846,7]
[370299165,1751941868970,-154.366158,0.00030846,7]
[370299166,1751941868980,-151.0,0.00030846,7]
[370299167,1751941868989,-151.436186,0.00030846,7]
[370299168,1751941868999,-151.0,0.00030846,7]
[370299169,1751941869008,-151.0,0.00030846,7]
[370299170,1751941869017,-153.01013,0.00030846,7]
[370299171,1751941869026,-469.81030756,0.00030846,7]
[370299172,1751941869035,-481.72840562,0.00030846,7]
[370299173,1751941869044,-460.0,0.00030846,7]
[370299174,1751941869053,-460.0,0.00030846,7]
[370299175,1751941869178,-460.0,0.00030846,7]
[370299176,1751941869189,-460.0,0.00030846,7]
[370299177,1751941869199,-460.0,0.00030846,7]
[370299178,1751941869208,-460.0,0.00030846,7]
[370299179,1751941869217,-151.0,0.00030846,7]
[370299180,1751941869227,-460.0,0.00030846,7]
[370299181,1751941869236,-156.96,0.00030846,7]
[370299182,1751941869245,-460.0,0.00030846,7]
[370299183,1751941869254,-776.98,0.00030846,7]
[370299184,1751941869263,-151.0,0.00030846,7]
[370299185,1751941869271,-460.0,0.00030846,7]
[370299186,1751941869280,-151.42481,0.00030846,7]
[370299187,1751941869289,-460.0,0.00030846,7]
[370299188,1751941869298,-460.0,0.00030846,7]
[370299189,1751941869308,-151.0,0.00030846,7]
[370299190,1751941869317,-460.0,0.00030846,7]
[370299191,1751941869326,-460.0,0.00030846,7]
[370299192,1751941869335,-460.0,0.00030846,7]
[370299193,1751941869344,-460.0,0.00030846,7]
[370299194,1751941869353,-470.14190894,0.00030846,7]
[370299195,1751941869362,-151.0,0.00030846,7]
[370299196,1751941869372,-460.0,0.00030846,7]
[370299197,1751941869381,-460.0,0.00030846,7]
[370299198,1751941869390,-460.0,0.00030846,7]
[370299199,1751941869399,-478.83591335,0.00030846,7]
[370299200,1751941869409,-151.0,0.00030846,7]
[370299201,1751941869418,-151.0,0.00030846,7]
[370299202,1751941869428,-151.0,0.00030846,7]
[370299203,1751941869437,-151.0,0.00030846,7]
[370299204,1751941869447,-460.0,0.00030846,7]
[370299205,1751941869457,-460.0,0.00030846,7]
[370299206,1751941869466,-615.76,0.00030846,7]
[370299207,1751941869481,-460.0,0.00030846,7]
[370299208,1751941869492,-642.03,0.00030846,7]
[370299209,1751941869501,-162.716349,0.00030846,7]
[370299210,1751941869510,-460.0,0.00030846,7]
[370299211,1751941869520,-460.0,0.00030846,7]
[370299212,1751941869529,-460.0,0.00030846,7]
[370299213,1751941869539,-598.85,0.00030846,7]
[370299214,1751941869550,-552.85,0.00030846,7]
[370299215,1751941869559,-460.0,0.00030846,7]
[370299216,1751941869568,-460.0,0.00030846,7]
[370299217,1751941869578,-460.0,0.00030846,7]
[370299218,1751941869587,-460.0,0.00030846,7]
[370299219,1751941869596,-460.0,0.00030846,7]
[370299220,1751941869606,-460.0,0.00030846,7]
[370299221,1751941869615,-460.0,0.00030846,7]
[370299222,1751941869624,-1656.789343,0.00030846,7]
[370299223,1751941869633,-1656.789343,0.00030846,7]
[370299224,1751941869642,-151.0,0.00030857,7]
[370299225,1751941869652,-151.0,0.00030857,7]
[370299226,1751941869661,-151.0,0.00030857,7]
[370299227,1751941869670,-151.0,0.00030857,7]
[370299228,1751941869680,-151.0,0.00030857,7]
[370299229,1751941869690,-258.275655,0.00030857,7]
[370299230,1751941869699,-258.275655,0.00030857,7]
[370299231,1751941869708,-716.386919,0.00030857,7]
[370299232,1751941869717,-716.386919,0.00030857,7]
[370299233,1751941869727,-151.0,0.00030857,7]
[370299234,1751941869737,-151.0,0.00030857,7]
[370299235,1751941869746,-3034.465658,0.00030868,2]
[370299236,1751941869755,-151.0,0.00030868,7]
[370299237,1751941869765,-151.0,0.00030868,7]
[370299238,1751941869774,-475.0,0.0003089,2]
[370299239,1751941869783,-151.0,0.00030903,7]
[370299240,1751941869792,-200.798666,0.00030903,7]
[370299241,1751941869801,-200.798666,0.00030903,7]
[370299242,1751941869811,-773.049683,0.00030903,7]
[370299243,1751941869820,-773.049683,0.00030903,7]
[370299244,1751941869829,-151.0,0.00030903,7]
[370299245,1751941869838,-286.25,0.00030953,2]
[370299246,1751941869847,-765.59,0.00030955,7]
[370299247,1751941869856,-500.0,0.00030955,7]
[370299248,1751941869865,-441.078767,0.00030956,7]
[370299249,1751941869874,-441.078767,0.00030956,7]
[370299250,1751941869884,-152.120197,0.00030957,7]
[370299251,1751941869893,-151.0,0.00030957,7]
[370299252,1751941869903,-151.0,0.00030957,7]
[370299253,1751941869912,-151.0,0.00030957,7]
[370299254,1751941869922,-1650.45,0.00030957,7]
[370299255,1751941869931,-521.53,0.00030957,7]
[370299256,1751941869941,-521.53,0.00030957,7]
[370299257,1751941869950,-521.53,0.00030957,7]
[370299258,1751941869959,-820.97,0.00030957,7]
[370299259,1751941869969,-500.0,0.00030958,7]
[370299260,1751941869978,-150.0,0.00030958,7]
[370299261,1751941869987,-500.0,0.00030958,7]
[370299262,1751941869997,-500.0,0.00030958,7]
[370299263,1751941870006,-150.0,0.00030958,7]
[370299264,1751941870016,-500.0,0.00030958,7]
[370299265,1751941870025,-500.0,0.00030958,7]
[370299266,1751941870035,-154.9622162,0.00030958,7]
[370299267,1751941870045,-202.90048879,0.00030958,7]
[370299268,1751941870056,-500.0,0.00030958,7]
[370299269,1751941870066,-500.0,0.00030958,2]
[370299270,1751941870076,-1198.0,0.00030958,7]
[370299271,1751941870086,-342.71294229,0.00030958,7]
[370299272,1751941870096,-500.0,0.00030958,2]
[370299273,1751941870106,-500.0,0.00030958,7]
[370299274,1751941870116,-500.0,0.00030958,60]
[370299275,1751941870127,-500.0,0.00030958,7]
[370299276,1751941870137,-566.0,0.00030958,7]
[370299277,1751941870146,-306.22003952,0.00030958,7]
[370299278,1751941870156,-500.0,0.00030958,7]
[370299279,1751941870165,-500.0,0.00030958,7]
[370299280,1751941870174,-580.0,0.00030958,7]
[370299281,1751941870184,-580.0,0.00030958,7]
[370299282,1751941870194,-460.0,0.00030958,7]
[370299283,1751941870204,-151.0,0.00030958,7]
[370299284,1751941870215,-552.23414756,0.00030958,7]
[370299285,1751941870225,-151.0,0.00030958,7]
[370299286,1751941870235,-475.39807062,0.00030958,7]
[370299287,1751941870244,-471.89390274,0.00030958,7]
[370299288,1751941870253,-151.0,0.00030958,7]
[370299289,1751941870263,-151.0,0.00030958,7]
[370299290,1751941870272,-151.0,0.00030958,7]
[370299291,1751941870282,-151.0,0.00030958,7]
[370299292,1751941870291,-151.0,0.00030958,7]
[370299293,1751941870301,-151.0,0.00030958,7]
[370299294,1751941870311,-151.0,0.00030958,7]
[370299295,1751941870320,-151.0,0.00030958,7]
[370299296,1751941870330,-584.75,0.00030958,7]
[370299297,1751941870339,-460.0,0.00030958,7]
[370299298,1751941870350,-151.0,0.00030958,7]
[370299299,1751941870359,-460.0,0.00030958,7]
[370299300,1751941870369,-857.46,0.00030958,7]
[370299301,1751941870380,-530.12023715,0.00030958,7]
[370299302,1751941870391,-460.0,0.00030958,7]
[370299303,1751941870402,-245.50877191,0.00030958,7]
[370299304,1751941870414,-460.0,0.00030958,7]
[370299305,1751941870424,-460.0,0.00030958,7]
[370299306,1751941870435,-151.0,0.00030958,7]
[370299307,1751941870445,-151.0,0.00030958,7]
[370299308,1751941870454,-460.0,0.00030958,7]
[370299309,1751941870464,-460.0,0.00030958,7]
[370299310,1751941870477,-230.485031,0.00030958,7]
[370299311,1751941870491,-460.0,0.00030958,7]
[370299312,1751941870505,-460.0,0.00030958,7]
[370299313,1751941870515,-694.68,0.00030958,7]
[370299314,1751941870525,-460.0,0.00030958,7]
[370299315,1751941870536,-460.0,0.00030958,7]
[370299316,1751941870547,-726.7,0.00030958,7]
[370299317,1751941870558,-460.0,0.00030958,7]
[370299318,1751941870567,-460.0,0.00030958,7]
[370299319,1751941870576,-498.17148739,0.00030958,7]
[370299320,1751941870586,-460.0,0.00030958,7]
[370299321,1751941870595,-460.0,0.00030958,7]
[370299322,1751941870604,-246.98913691,0.00030958,7]
[370299323,1751941870614,-695.84,0.00030958,7]
[370299324,1751941870623,-556.64,0.00030958,7]
[370299325,1751941870633,-460.0,0.00030958,7]
[370299326,1751941870643,-151.0,0.00030958,7]
[370299327,1751941870652,-155.100836,0.00030958,7]
[370299328,1751941870663,-460.0,0.00030958,7]
[370299329,1751941870673,-531.86725764,0.00030958,7]
[370299330,1751941870682,-460.0,0.00030958,7]
[370299331,1751941870692,-473.75360748,0.00030958,7]
[370299332,1751941870701,-460.0,0.00030958,7]
[370299333,1751941870710,-495.93253504,0.00030958,7]
[370299334,1751941870719,-672.92,0.00030958,7]
[370299335,1751941870728,-460.0,0.00030958,7]
[370299336,1751941870738,-460.0,0.00030958,7]
[370299337,1751941870747,-460.0,0.00030958,7]
[370299338,1751941870756,-460.0,0.00030958,7]
[370299339,1751941870765,-460.0,0.00030958,7]
[370299340,1751941870774,-460.0,0.00030958,7]
[370299341,1751941870783,-460.0,0.00030958,7]
[370299342,1751941870892,-684.91,0.00030958,7]
[370299343,1751941870914,-460.0,0.00030958,7]
[370299344,1751941870923,-151.0,0.00030958,7]
[370299345,1751941870932,-861.74,0.00030958,7]
[370299346,1751941870941,-151.0,0.00030958,7]
[370299347,1751941870950,-460.0,0.00030958,7]
[370299348,1751941870959,-460.0,0.00030958,7]
[370299349,1751941870969,-460.0,0.00030958,7]
[370299350,1751941870978,-460.0,0.00030958,7]
[370299351,1751941870987,-460.0,0.00030958,7]
[370299352,1751941870996,-460.0,0.00030958,7]
[370299353,1751941871006,-460.0,0.00030958,7]
[370299354,1751941871015,-460.0,0.00030958,7]
[370299355,1751941871025,-460.0,0.00030958,7]
[370299356,1751941871034,-531.91573056,0.00030958,7]
[370299357,1751941871044,-847.27,0.00030958,7]
[370299358,1751941871054,-460.0,0.00030958,7]